bitfinex/quotes_SOLUSD_20240605
["timestamp","ask_amount","ask_price","bid_price","bid_amount"]
[1717553764720,8.4141,173.28,173.24,2.1356]
[1717553764997,6.2789,173.33,173.25,120.0]
[1717553765162,6.2789,173.33,173.27,10.6767]
[1717553765370,6.2789,173.33,173.3,2.1349]
[1717553766279,2.1345,173.34,173.3,2.1349]
[1717553766671,25.1067,173.35,173.31,2.1348]
[1717553767072,8.4484,173.35,173.31,2.1348]
[1717553767296,6.314,173.35,173.31,2.1348]
[1717553767595,21.5145,173.39,173.29,154.54]
[1717553767806,21.5145,173.39,173.33,2.1345]
[1717553767807,2.1341,173.37,173.33,2.1345]
[1717553768288,26.4435,173.38,173.34,2.1345]
[1717553768488,26.4435,173.38,173.31,124.2697]
[1717553768489,20.0,173.38,173.35,2.1343]
[1717553768690,2.1339,173.39,173.34,2.1344]
[1717553768888,2.134,173.38,173.34,2.1344]
[1717553769096,2.1339,173.39,173.34,2.1344]
[1717553769412,2.1339,173.39,173.35,2.1343]
[1717553769990,0.8184313,173.4,173.33,120.0]
[1717553770202,0.8184313,173.4,173.37,2.1341]
[1717553770703,0.8184313,173.4,173.33,120.0]
[1717553770905,2.1341,173.37,173.33,122.1345]
[1717553771214,2.1341,173.38,173.33,122.1345]
[1717553771375,2.1341,173.38,173.34,2.1345]
[1717553771707,2.1339,173.39,173.35,2.1344]
[1717553772489,6.0296,173.38,173.32,4.2694]
[1717553772688,26.1996,173.37,173.23,163.0832]
[1717553773000,0.8184313,173.4,173.31,34.54]
[1717553773210,0.8184313,173.4,173.32,120.0]
[1717553773382,0.8184313,173.4,173.32,154.54]
[1717553773580,0.8184313,173.4,173.39,2.1339]
[1717553773907,0.8184313,173.4,173.39,173.3616]
[1717553774084,0.8184313,173.4,173.39,161.1117]
[1717553774402,0.8184313,173.4,173.39,161.2817]
[1717553775694,0.8184313,173.4,173.39,2.1339]
[1717553776595,0.8184313,173.4,173.37,2.134]
[1717553776804,0.8184313,173.4,173.34,120.0]
[1717553777106,0.8184313,173.4,173.38,2.134]
[1717553777905,0.8184313,173.4,173.32,53.7522]
[1717553777906,0.8184313,173.4,173.32,154.54]
[1717553778286,0.8184313,173.4,173.36,2.1342]
[1717553778493,7.0922313,173.4,173.36,2.1342]
[1717553778690,7.0922313,173.4,173.31,4.2697]
[1717553778994,7.0922313,173.4,173.3,154.54]
[1717553779181,7.0922313,173.4,173.33,2.1346]
[1717553779385,7.0922313,173.4,173.31,2.1347]
[1717553779580,20.0,173.39,173.31,2.1347]
[1717553779890,20.0,173.39,173.27,154.54]
[1717553780097,20.0,173.39,173.27,160.9458]
[1717553780498,22.6377,173.38,173.34,2.1345]
[1717553780811,6.6143,173.37,173.34,2.1345]
[1717553780990,6.5176,173.36,173.34,2.1345]
[1717553781412,6.5176,173.36,173.33,2.1346]
[1717553781584,6.5176,173.36,173.34,2.1345]
[1717553782085,6.5176,173.36,173.33,2.1346]
[1717553782308,22.1339,173.39,173.33,2.1346]
[1717553782494,22.2494,173.37,173.33,2.1346]
[1717553782696,6.4494,173.36,173.33,2.1346]
[1717553783784,6.4494,173.36,173.32,2.1347]
[1717553784097,6.4494,173.36,173.33,2.1346]
[1717553784409,6.4494,173.36,173.34,2.1345]
[1717553784595,6.4494,173.36,173.33,2.1345]
[1717553784795,6.4494,173.36,173.29,4.2702]
[1717553785400,6.4494,173.36,173.33,2.1346]
[1717553785797,6.4494,173.36,173.34,2.1345]
[1717553785998,6.174,173.38,173.25,158.811]
[1717553786199,2.1343,173.36,173.26,4.2709]
[1717553786384,2.1344,173.35,173.26,4.2709]
[1717553786723,22.1342,173.37,173.31,2.1348]
[1717553787020,6.2406,173.34,173.31,2.1348]
[1717553787324,2.1343,173.36,173.3,2.135]
[1717553787325,6.2406,173.33,173.3,2.135]
[1717553787824,6.2406,173.33,173.31,2.1348]
[1717553788901,6.2406,173.33,173.3,2.1349]
[1717553789708,6.553,173.32,173.24,380.3]
[1717553790312,6.0597,173.32,173.29,2.135]
[1717553790493,6.0597,173.32,173.3,2.1349]
[1717553792206,6.0597,173.32,173.31,2.1349]
[1717553792695,6.0597,173.32,173.3,2.1349]
[1717553793617,8.3247,173.35,173.3,2.1349]
[1717553793827,6.1903,173.33,173.3,2.1349]
[1717553795095,8.3249,173.33,173.29,2.1351]
[1717553795413,6.1903,173.33,173.26,34.54]
[1717553795608,6.1903,173.33,173.29,2.135]
[1717553795813,6.1903,173.33,173.3,2.135]
[1717553797296,6.4275,173.31,173.23,380.3]
[1717553797517,8.5627,173.29,173.24,2.1357]
[1717553797721,8.5627,173.29,173.22,2.1359]
[1717553797722,2.1354,173.27,173.22,2.1359]
[1717553798016,2.1354,173.27,173.2,4.2724]
[1717553798225,8.5911,173.27,173.23,2.1358]
[1717553798422,6.4557,173.33,173.23,120.0]
[1717553798624,26.8027,173.35,173.25,4.2711]
[1717553798931,6.4557,173.31,173.27,2.1353]
[1717553799133,6.4557,173.3,173.28,2.1352]
[1717553800325,6.4557,173.3,173.29,2.1351]
[1717553800526,6.4557,173.3,173.28,2.1352]
[1717553802039,6.4557,173.3,173.29,2.1351]
[1717553802206,6.3283,173.36,173.34,2.1345]
[1717553802410,6.3283,173.36,173.33,2.1345]
[1717553802612,6.3283,173.36,173.34,2.1344]
[1717553803523,6.3283,173.36,173.31,4.2697]
[1717553803524,6.3283,173.36,173.33,2.1346]
[1717553804029,6.3283,173.36,173.33,2.1345]
[1717553804211,8.4626,173.36,173.32,2.1347]
[1717553804414,6.3283,173.36,173.32,2.1347]
[1717553804824,6.3283,173.36,173.35,2.1344]
[1717553805210,15.5285,173.38,173.34,2.1344]
[1717553805411,20.0,173.37,173.34,2.1344]
[1717553805611,20.0,173.37,173.35,2.1344]
[1717553806131,6.8782313,173.4,173.36,2.1342]
[1717553806339,9.0120313,173.4,173.35,2.1343]
[1717553806535,0.8184313,173.4,173.38,2.1339]
[1717553806748,0.8184313,173.4,173.34,120.0]
[1717553806749,0.8184313,173.4,173.39,2.1339]
[1717553809106,0.8184313,173.4,173.39,6.4017]
[1717553809919,0.8184313,173.4,173.39,2.1339]
[1717553813741,0.8184313,173.4,173.39,6.4017]
[1717553813926,0.8184313,173.4,173.39,21.339]
[1717553814237,0.8184313,173.4,173.39,141.679]
[1717553814919,3.13e-05,173.4,173.39,182.2958]
[1717553815126,3.13e-05,173.4,173.39,217.349]
[1717553817437,3.13e-05,173.4,173.39,75.879]
[1717553817626,3.13e-05,173.4,173.39,195.879]
[1717553818726,3.13e-05,173.4,173.39,196.219]
[1717553819742,3.13e-05,173.4,173.39,202.6388]
[1717553819943,3.13e-05,173.4,173.39,224.1788]
[1717553822835,3.13e-05,173.4,173.39,224.1788]
[1717553823443,3.13e-05,173.4,173.39,239.3441]
[1717553823642,6.507,173.52,173.5,2.1325]
[1717553824240,16.1864,173.55,173.49,8.5307]
[1717553824438,16.1864,173.55,173.45,154.54]
[1717553824439,6.1285,173.54,173.51,2.1323]
[1717553824723,6.2443,173.53,173.51,2.1323]
[1717553824927,6.2443,173.53,173.52,2.1323]
[1717553825851,22.5463,173.55,173.52,2.1323]
[1717553826030,22.5463,173.55,173.53,2.1321]
[1717553826348,6.3599,173.55,173.53,2.1321]
[1717553826751,6.3599,173.55,173.52,2.1322]
[1717553827245,6.3599,173.55,173.53,2.1321]
[1717553828135,6.3599,173.55,173.5,10.6626]
[1717553828451,2.1318,173.56,173.5,10.6626]
[1717553828452,0.8184313,173.58,173.56,2.1317]
[1717553828634,0.8184313,173.58,173.54,14.9241]
[1717553828635,0.8184313,173.58,173.57,2.1317]
[1717553829334,0.8184313,173.58,173.56,2.1317]
[1717553829532,0.8184313,173.58,173.57,2.1317]
[1717553835548,0.8184313,173.58,173.57,6.3951]
[1717553836853,0.8184313,173.58,173.57,2.1317]
[1717553838944,0.8184313,173.58,173.57,6.3951]
[1717553839268,0.8184313,173.58,173.57,21.317]
[1717553840651,0.8184313,173.58,173.57,132.7902]
[1717553841360,0.8184313,173.58,173.57,2.1317]
[1717553844972,0.8184313,173.58,173.56,2.1317]
[1717553845169,0.8184313,173.58,173.57,2.1317]
[1717553845360,0.8184313,173.58,173.54,4.264]
[1717553845563,0.8184313,173.58,173.57,2.1317]
[1717553847479,0.8184313,173.58,173.56,2.1317]
[1717553847668,0.8184313,173.58,173.56,2.1318]
[1717553848476,0.8184313,173.58,173.57,2.1317]
[1717553855371,0.8184313,173.58,173.57,6.3951]
[1717553855574,0.8184313,173.58,173.57,21.317]
[1717553857586,0.8184313,173.58,173.57,56.027]
[1717553857766,0.8184313,173.58,173.57,56.197]
[1717553858167,0.8184313,173.58,173.57,56.027]
[1717553858567,0.8184313,173.58,173.57,56.197]
[1717553858767,0.8184313,173.58,173.57,2.1317]
[1717553859565,0.8184313,173.58,173.57,122.1317]
[1717553862268,0.8184313,173.58,173.57,2.1317]
[1717553862782,0.8184313,173.58,173.57,122.1317]
[1717553863287,0.8184313,173.58,173.57,2.1317]
[1717553867777,0.8184313,173.58,173.57,168.1051]
[1717553867993,0.8184313,173.58,173.57,168.2751]
[1717553868790,0.8184313,173.58,173.57,203.367]
[1717553868988,0.8184313,173.58,173.57,209.8385]
[1717553870466,0.8184313,173.58,173.57,202.6685]
[1717553870685,0.8184313,173.58,173.57,209.8385]
[1717553870876,0.8184313,173.58,173.57,590.1385]
[1717553871591,0.8184313,173.58,173.57,583.667]
[1717553872087,0.8184313,173.58,173.57,576.497]
[1717553872296,0.8184313,173.58,173.57,583.667]
[1717553872872,0.8184313,173.58,173.57,576.497]
[1717553873190,0.8184313,173.58,173.57,583.667]
[1717553873386,0.8184313,173.58,173.57,590.0278]
[1717553878699,0.8184313,173.58,173.57,582.8578]
[1717553879009,0.8184313,173.58,173.57,590.0278]
[1717553879414,4.2595,173.73,173.61,120.0]
[1717553879707,6.1753,173.72,173.69,2.1301]
[1717553879881,6.1753,173.72,173.67,124.2609]
[1717553880075,6.1753,173.72,173.69,9.3002]
[1717553880282,6.1753,173.72,173.69,2.1302]
[1717553880511,6.1753,173.72,173.69,7.17]
[1717553880808,8.3051,173.72,173.68,7.17]
[1717553881222,6.1753,173.72,173.68,9.3003]
[1717553881725,16.2471,173.71,173.67,2.1304]
[1717553881882,6.2972,173.7,173.67,2.1304]
[1717553882084,6.2972,173.7,173.66,9.3005]
[1717553882587,6.2972,173.7,173.67,2.1304]
[1717553882806,9.2999,173.72,173.67,2.1304]
[1717553882807,6.5332,173.72,173.68,9.3003]
[1717553883021,16.3825313,173.75,173.7,7.17]
[1717553883315,22.4867313,173.75,173.71,9.2999]
[1717553883903,22.4867313,173.75,173.72,2.1298]
[1717553884284,22.4867313,173.75,173.73,2.1297]
[1717553884496,6.9226313,173.75,173.73,2.1297]
[1717553885212,0.8184313,173.75,173.72,9.2998]
[1717553885789,0.8184313,173.75,173.72,7.17]
[1717553886213,0.8184313,173.75,173.73,2.1296]
[1717553886884,0.8184313,173.75,173.74,2.1296]
[1717553888007,0.8184313,173.75,173.74,9.2996]
[1717553888405,0.8184313,173.75,173.74,2.1296]
[1717553889817,0.8184313,173.75,173.74,13.5588]
[1717553890118,0.8184313,173.75,173.74,13.7288]
[1717553891721,0.8184313,173.75,173.74,6.5588]
[1717553892026,0.8184313,173.75,173.74,13.7288]
[1717553892398,0.8184313,173.75,173.74,6.5588]
[1717553892705,0.8184313,173.75,173.74,48.636]
[1717553892899,0.8184313,173.75,173.74,48.806]
[1717553893112,0.8184313,173.75,173.74,83.346]
[1717553894900,0.8184313,173.75,173.74,89.9103]
[1717553896298,0.8184313,173.75,173.74,82.7403]
[1717553896611,0.8184313,173.75,173.74,89.9103]
[1717553898005,0.8184313,173.75,173.74,203.006]
[1717553899219,0.8184313,173.75,173.74,183.006]
[1717553899529,0.8184313,173.75,173.74,2.1296]
[1717553899841,6.8848313,173.75,173.74,2.1296]
[1717553900024,0.8184313,173.75,173.74,9.2996]
[1717553900206,0.8184313,173.75,173.69,128.5209]
[1717553900406,15.954,173.74,173.68,38.8006]
[1717553900602,6.0893,173.73,173.7,2.13]
[1717553901109,2.9479313,173.75,173.62,6.3142]
[1717553901110,2.1301,173.7,173.64,120.0]
[1717553901313,8.2196,173.68,173.63,2.1309]
[1717553901500,15.954,173.69,173.62,380.3]
[1717553901501,13.2593,173.69,173.62,380.3]
[1717553901702,15.954,173.67,173.62,2.131]
[1717553901907,22.0433,173.67,173.63,2.1308]
[1717553902115,22.0433,173.67,173.64,2.1308]
[1717553902541,15.954,173.67,173.63,2.1309]
[1717553902829,6.0893,173.66,173.64,9.3007]
[1717553903006,6.0893,173.66,173.64,2.1307]
[1717553903205,15.954,173.65,173.58,380.3]
[1717553903408,25.2548,173.65,173.59,9.3013]
[1717553903828,15.954,173.64,173.6,2.1313]
[1717553904126,6.0893,173.62,173.6,2.1313]
[1717553904522,6.0893,173.68,173.61,120.0]
[1717553904838,2.1303,173.68,173.62,2.131]
[1717553905022,2.1302,173.69,173.63,2.1309]
[1717553905343,6.0893,173.67,173.63,2.1309]
[1717553905646,6.0893,173.67,173.64,2.1308]
[1717553905823,6.0893,173.67,173.63,2.1309]
[1717553906018,6.4751,173.66,173.63,2.1309]
[1717553907327,6.4751,173.66,173.62,2.131]
[1717553907527,6.4751,173.66,173.63,2.1309]
[1717553908642,6.4751,173.66,173.64,2.1308]
[1717553908819,6.4751,173.66,173.63,2.1309]
[1717553909225,6.4751,173.66,173.64,2.1308]
[1717553909427,6.4751,173.66,173.63,2.1309]
[1717553909649,6.4751,173.66,173.64,2.1308]
[1717553910034,2.1306,173.66,173.61,2.1311]
[1717553910235,6.2519,173.65,173.62,2.131]
[1717553910746,6.2519,173.67,173.63,2.1309]
[1717553910929,6.2519,173.67,173.64,2.1308]
[1717553911124,2.1304,173.68,173.64,2.1308]
[1717553911929,2.1302,173.69,173.64,2.1308]
[1717553912325,2.1301,173.7,173.62,126.3931]
[1717553912640,2.1301,173.7,173.65,2.1306]
[1717553913123,2.1302,173.69,173.65,2.1306]
[1717553913751,2.1301,173.7,173.65,2.1306]
[1717553914150,8.7685,173.7,173.65,2.1306]
[1717553914351,8.7685,173.7,173.66,2.1305]
[1717553914560,8.7685,173.7,173.65,2.1306]
[1717553915270,8.7685,173.7,173.66,2.1305]
[1717553915751,8.7685,173.7,173.65,2.1306]
[1717553916128,8.7685,173.7,173.66,2.1305]
[1717553917026,8.7685,173.7,173.65,2.1306]
[1717553917676,7.0981313,173.75,173.65,8.5225]
[1717553917836,2.1298,173.73,173.7,2.1301]
[1717553918147,6.2645,173.74,173.68,4.2605]
[1717553918351,8.3941,173.74,173.7,2.13]
[1717553919274,8.3941,173.74,173.71,2.1299]
[1717553919275,6.2645,173.74,173.71,2.1299]
[1717553919668,0.8184313,173.75,173.7,34.54]
[1717553919866,0.8184313,173.75,173.74,2.1296]
[1717553921165,0.8184313,173.75,173.74,4.43109452]
[1717553921767,0.8184313,173.75,173.74,39.14109452]
[1717553921982,0.8184313,173.75,173.74,43.57029452]
[1717553922181,0.8184313,173.75,173.74,78.47749452]
[1717553922561,0.8184313,173.75,173.74,100.56219452]
[1717553922974,0.8184313,173.75,173.74,109.11826018]
[1717553923173,0.8184313,173.75,173.74,100.56219452]
[1717553923369,0.8184313,173.75,173.74,109.11826018]
[1717553923872,0.8184313,173.75,173.74,489.41826018]
[1717553924072,0.8184313,173.75,173.74,480.86219452]
[1717553924270,0.8184313,173.75,173.74,489.39483977]
[1717553924500,3.13e-05,173.75,173.74,489.39483977]
[1717553924787,3.13e-05,173.75,173.74,480.86219452]
[1717553925091,3.13e-05,173.75,173.74,489.39483977]
[1717553925392,3.13e-05,173.75,173.74,480.86219452]
[1717553925596,3.13e-05,173.75,173.74,489.39483977]
[1717553926286,3.13e-05,173.75,173.74,480.86219452]
[1717553926985,3.13e-05,173.75,173.74,465.06069452]
[1717553927181,3.13e-05,173.75,173.74,462.7592]
[1717553927877,3.13e-05,173.75,173.74,463.626]
[1717553928498,3.13e-05,173.75,173.74,469.9957]
[1717553929080,24.3347,173.87,173.83,2.1284]
[1717553929081,6.4367,173.86,173.83,2.1284]
[1717553930379,22.4977,173.85,173.82,2.1285]
[1717553930701,6.4367,173.85,173.83,2.1284]
[1717553932301,7.15,173.88,173.71,25.03704525]
[1717553932302,2.129,173.79,173.75,2.1294]
[1717553932501,22.4977,173.77,173.73,2.1296]
[1717553932799,2.1291,173.78,173.72,41.69]
[1717553933102,2.1293,173.77,173.73,2.1297]
[1717553933280,2.1293,173.77,173.72,127.15]
[1717553933281,6.4367,173.77,173.74,2.1295]
[1717553934393,8.5659,173.77,173.73,2.1297]
[1717553934579,6.4602,173.76,173.73,2.1297]
[1717553935079,17.865,173.77,173.73,2.1297]
[1717553935401,15.2524,173.81,173.72,154.54]
[1717553935614,2.1289,173.8,173.73,4.2594]
[1717553935906,8.5175,173.8,173.76,2.1293]
[1717553936404,8.5175,173.8,173.75,2.1294]
[1717553936574,2.129,173.79,173.75,2.1294]
[1717553937203,22.6168,173.8,173.74,120.0]
[1717553937425,6.3886,173.8,173.76,2.1292]
[1717553937788,8.5174,173.8,173.76,2.1292]
[1717553938276,2.129,173.79,173.75,2.1294]
[1717553938485,8.4537,173.79,173.75,2.1294]
[1717553940178,8.4537,173.79,173.73,4.2594]
[1717553940383,6.3247,173.79,173.77,2.1292]
[1717553940608,2.129,173.79,173.76,2.1293]
[1717553940802,22.0382,173.79,173.72,384.5595]
[1717553940997,22.0382,173.79,173.75,2.1294]
[1717553940998,22.0382,173.78,173.75,2.1294]
[1717553941211,6.6529,173.78,173.76,2.1293]
[1717553941698,6.6529,173.78,173.75,2.1294]
[1717553942112,8.6623,173.8,173.76,2.1293]
[1717553942318,8.6617,173.85,173.78,6.3872]
[1717553942495,2.1284,173.84,173.8,2.1288]
[1717553942699,8.6618,173.84,173.8,2.1288]
[1717553942904,22.1645,173.82,173.74,380.3]
[1717553943213,8.6624,173.79,173.75,2.1294]
[1717553944217,6.5334,173.79,173.76,2.1293]
[1717553944415,2.1289,173.8,173.76,2.1293]
[1717553945221,2.1289,173.8,173.77,2.1292]
[1717553945515,8.6622,173.81,173.77,2.1292]
[1717553946910,6.5334,173.81,173.78,2.1291]
[1717553947113,6.2215,173.85,173.77,14.9042]
[1717553947326,2.1284,173.84,173.8,2.1288]
[1717553947719,2.1285,173.83,173.8,2.1288]
[1717553948519,2.1285,173.83,173.79,2.1289]
[1717553949218,24.3542,173.83,173.79,2.1289]
[1717553949520,22.2257,173.83,173.79,2.1289]
[1717553949928,2.1287,173.82,173.78,2.129]
[1717553950120,8.3392,173.82,173.78,2.129]
[1717553950417,6.2105,173.82,173.77,4.2583]
[1717553950608,6.2105,173.82,173.79,2.1289]
[1717553951213,6.2105,173.82,173.8,2.1288]
[1717553951404,6.2105,173.82,173.77,4.2583]
[1717553951405,6.2105,173.82,173.79,2.1289]
[1717553952520,6.214,173.8,173.77,2.1291]
[1717553952698,6.214,173.8,173.76,2.1293]
[1717553952895,8.3429,173.8,173.76,2.1293]
[1717553953114,6.214,173.8,173.76,2.1293]
[1717553953308,2.129,173.79,173.76,2.1293]
[1717553953601,2.1291,173.78,173.75,2.1294]
[1717553954007,8.3431,173.78,173.74,2.1295]
[1717553954316,2.1292,173.77,173.74,2.1295]
[1717553954516,2.1292,173.77,173.73,382.4296]
[1717553954716,2.1292,173.77,173.74,2.1296]
[1717553954913,2.1292,173.77,173.73,382.4296]
[1717553955426,6.4955,173.77,173.73,380.3]
[1717553955734,23.8932,173.77,173.73,382.4296]
[1717553956034,6.4955,173.77,173.74,2.1295]
[1717553956232,6.4955,173.77,173.73,380.3]
[1717553956410,8.6247,173.77,173.73,380.3]
[1717553956613,8.6247,173.77,173.73,382.4296]
[1717553956813,8.6247,173.77,173.73,380.3]
[1717553957112,8.6247,173.77,173.73,382.4296]
[1717553957729,4.258,173.79,173.73,380.3]
[1717553957730,8.1811,173.76,173.73,380.3]
[1717553958028,15.3412,173.76,173.73,380.3]
[1717553958738,6.0518,173.76,173.7,17.8103]
[1717553959039,7.16,173.76,173.72,2.1297]
[1717553959210,2.1297,173.74,173.7,2.13]
[1717553959410,15.6555,173.74,173.7,2.13]
[1717553959616,15.6555,173.74,173.67,41.7]
[1717553959617,13.5258,173.74,173.67,41.7]
[1717553959840,2.1298,173.73,173.69,2.1302]
[1717553960015,9.2898,173.73,173.69,2.1302]
[1717553960222,2.1294,173.76,173.71,7.16]
[1717553960436,2.1297,173.73,173.67,4.2608]
[1717553960613,9.2902,173.7,173.66,382.4305]
[1717553960823,2.1302,173.69,173.66,382.4305]
[1717553961046,2.1302,173.69,173.61,375.0]
[1717553961047,26.3375,173.66,173.59,2.1313]
[1717553961331,2.1312,173.61,173.57,2.1316]
[1717553961537,9.2912,173.61,173.56,2.1317]
[1717553961923,7.16,173.61,173.56,2.1317]
[1717553962115,9.2912,173.61,173.56,2.1317]
[1717553962317,7.16,173.61,173.55,7.16]
[1717553962736,9.2912,173.61,173.56,2.1317]
[1717553962916,7.16,173.61,173.57,2.1316]
[1717553963118,22.1867,173.62,173.58,2.1315]
[1717553963320,29.3467,173.62,173.58,2.1315]
[1717553963943,22.1867,173.62,173.58,2.1315]
[1717553964941,24.3178,173.62,173.58,2.1315]
[1717553965343,24.3178,173.62,173.57,2.1316]
[1717553965720,24.3178,173.62,173.58,2.1315]
[1717553965926,24.3178,173.62,173.57,2.1316]
[1717553966148,22.1867,173.62,173.58,2.1315]
[1717553966321,18.4222,173.66,173.61,2.1311]
[1717553966520,24.7044,173.66,173.61,2.1311]
[1717553966817,24.7044,173.66,173.62,2.131]
[1717553967022,24.7044,173.66,173.61,2.1311]
[1717553967222,6.0751,173.65,173.61,2.1311]
[1717553967453,8.2058,173.65,173.61,2.1311]
[1717553967741,8.2058,173.65,173.6,2.1312]
[1717553967924,2.1306,173.66,173.62,2.131]
[1717553968120,8.2052,173.7,173.64,2.1307]
[1717553968339,6.4574,173.71,173.63,4.2618]
[1717553968643,25.2303,173.7,173.66,2.1305]
[1717553969033,23.1002,173.7,173.66,2.1305]
[1717553969338,10.6482,173.74,173.63,4.2618]
[1717553969339,2.1299,173.72,173.64,130.6538]
[1717553969553,2.1299,173.72,173.66,120.0]
[1717553969854,17.347,173.74,173.66,126.3916]
[1717553970037,23.4959,173.74,173.7,2.13]
[1717553970353,8.2782,173.76,173.72,2.1298]
[1717553970530,6.1489,173.76,173.7,124.26]
[1717553970734,8.2783,173.76,173.72,2.1297]
[1717553970937,2.1294,173.75,173.71,2.1299]
[1717553971132,2.1294,173.75,173.69,20.0]
[1717553971335,6.1489,173.76,173.7,2.13]
[1717553971520,2.1295,173.75,173.71,2.1299]
[1717553971718,8.2783,173.76,173.71,2.1299]
[1717553971921,8.2783,173.76,173.72,2.1298]
[1717553972344,8.2783,173.76,173.71,2.1299]
[1717553972345,2.1295,173.75,173.71,2.1299]
[1717553972734,8.2783,173.76,173.71,2.1299]
[1717553972935,10.644,173.81,173.71,154.54]
[1717553973132,2.1293,173.77,173.73,2.1297]
[1717553973351,8.7257,173.78,173.74,2.1296]
[1717553975932,6.5966,173.78,173.75,2.1294]
[1717553976844,2.129,173.79,173.75,2.1294]
[1717553977050,2.1289,173.8,173.74,4.2592]
[1717553977233,8.7336,173.8,173.76,2.1293]
[1717553977436,6.6047,173.8,173.77,2.1292]
[1717553977648,6.6047,173.8,173.74,4.2592]
[1717553977649,8.7335,173.8,173.76,2.1293]
[1717553977835,6.6047,173.8,173.77,2.1292]
[1717553978035,6.6047,173.8,173.78,2.1291]
[1717553978248,18.6472,173.81,173.77,2.1291]
[1717553978451,2.1288,173.81,173.77,2.1291]
[1717553979960,6.6572,173.84,173.75,120.0]
[1717553980139,6.6572,173.84,173.8,2.1288]
[1717553980344,2.1285,173.83,173.79,2.1289]
[1717553980653,2.1285,173.83,173.77,124.2584]
[1717553981263,6.135,173.83,173.8,2.1288]
[1717553981753,2.1284,173.84,173.78,4.2581]
[1717553982051,2.1284,173.84,173.8,2.1288]
[1717553982931,2.1285,173.83,173.8,2.1288]
[1717553983937,2.1284,173.84,173.8,2.1288]
[1717553985550,2.1284,173.84,173.81,2.1287]
[1717553985754,2.1284,173.84,173.8,2.1288]
[1717553986654,4.2563,173.86,173.77,34.54]
[1717553986655,2.1286,173.82,173.77,34.54]
[1717553987650,2.1286,173.82,173.79,2.1289]
[1717553987848,2.1286,173.83,173.79,2.1289]
[1717553988149,8.3105,173.81,173.78,2.1291]
[1717553988349,6.1817,173.81,173.78,2.1291]
[1717553988549,2.1286,173.82,173.78,2.1291]
[1717553989557,2.1285,173.83,173.76,395.2054]
[1717553989856,2.1285,173.83,173.79,2.1289]
[1717553992651,2.1286,173.82,173.79,2.1289]
[1717553992854,2.1285,173.83,173.79,2.1289]
[1717553993253,10.8604,173.85,173.79,2.1289]
[1717553993561,2.1286,173.82,173.78,2.129]
[1717553994365,2.1286,173.82,173.79,2.1289]
[1717553994564,2.1285,173.83,173.79,2.1289]
[1717553994746,2.1286,173.82,173.79,2.1289]
[1717553995461,2.1285,173.83,173.79,2.1289]
[1717553996449,2.1286,173.82,173.79,2.1289]
[1717553996756,8.1299,173.81,173.78,2.129]
[1717553996965,6.0012,173.81,173.79,2.1289]
[1717553997262,18.6579,173.82,173.78,2.129]
[1717553997963,18.6579,173.82,173.79,2.129]
[1717553998157,18.6579,173.82,173.78,2.129]
[1717553998651,2.1287,173.81,173.78,2.129]
[1717553999258,18.658,173.82,173.78,2.129]
[1717553999967,16.5293,173.82,173.79,2.1289]
[1717554000460,2.1295,173.75,173.71,2.1299]
[1717554000757,4.259,173.75,173.66,34.54]
[1717554000963,4.259,173.75,173.69,2.1301]
[1717554001162,24.2475,173.74,173.69,2.1301]
[1717554001350,22.1179,173.74,173.7,2.13]
[1717554001666,24.2476,173.74,173.7,2.13]
[1717554002664,2.1297,173.73,173.69,2.1301]
[1717554003570,2.1295,173.75,173.71,2.1299]